Cogmind - Beta 16 @@@ ROGUE MODE // 2025.11.19 @ 23:27:36 // Winter2019/RPGLIKE Player: daniels1231 Result: Destroyed by G-47 Trooper with Particle Gun Performance ------------- Evolutions (2) 1000 Regions Visited (4) 800 Robots Destroyed (59) 295 Value Destroyed (1189) 1189 Prototype IDs (0) 0 Alien Tech Used (0) 0 Bonus (49) 49 TOTAL SCORE: 3333 Bonus ------- High Alert Combat Kills 49 Cogmind --------- Core Integrity 0/800 Matter 147/300 Energy 199/265 System Corruption 0% Temperature Critical (569) Movement Flying (114) Ox1 Location -8/Materials Parts ------- > --- POWER (1) -------- Improved Ion Engine > --- PROPULSION (5) --- Flight Unit Flight Unit Flight Unit Flight Unit > --- UTILITY (3) ------ Light Armor Plating > --- WEAPON (3) ------- EM Pulse Gun EM Pulse Gun > --- INVENTORY (2) ---- Wheel Peak State ------------ > --- POWER ------------ Improved Ion Engine > --- PROPULSION ------- Flight Unit Flight Unit Flight Unit Flight Unit Flight Unit > --- UTILITY ---------- Light Armor Plating > --- WEAPON ----------- EM Pulse Gun EM Pulse Gun Grenade Launcher > --- INVENTORY -------- Wheel EM Pulse Gun [Rating: 11] Favorites ----------- Power Ion Engine Engine Ion Engine Propulsion Wheel Treads Light Treads Wheel Wheel Flight Unit Flight Unit Utility Light Armor Plating Protection Light Armor Plating Weapon EM Pulse Gun Energy Gun EM Pulse Gun Energy Cannon Particle Cannon Ballistic Gun Assault Rifle Launcher Grenade Launcher Build | -11 -10 -9 -9 -8 ------- Run | Yrd Mat Mat Min Mat Slots Evolved 8 | 3 . 1 2 2 Power . | . . . . . Propulsion 4 | 2 . . 2 . Utility 2 | . . . . 2 Weapon 2 | 1 . 1 . . Parts Attached 22 | 7 2 6 6 1 Power 3 | 1 . 2 . . Engine 3 | 1 . 2 . . Core . | . . . . . Reactor . | . . . . . Propulsion 9 | 4 . . 5 . Treads 1 | 1 . . . . Leg . | . . . . . Wheel 3 | 3 . . . . Hover . | . . . . . Flight 5 | . . . 5 . Utility 3 | . 1 1 1 . Device . | . . . . . Storage . | . . . . . Processor . | . . . . . Hackware . | . . . . . Protection 3 | . 1 1 1 . Artifact . | . . . . . Weapon 7 | 2 1 3 . 1 Energy Gun 4 | 1 . 2 . 1 Energy Cannon 1 | . . 1 . . Ballistic Gun 1 | 1 . . . . Ballistic Cannon . | . . . . . Launcher 1 | . 1 . . . Special Weapon . | . . . . . Impact Weapon . | . . . . . Slashing Weapon . | . . . . . Piercing Weapon . | . . . . . Special Melee Weapon . | . . . . . Unidentified Prototypes . | . . . . . Corrupted Parts 3 | . . 2 1 . System Corruption 3 | . . 2 1 . Parts Lost 4 | . . 1 . 3 Power . | . . . . . Propulsion 1 | . . . . 1 Utility 1 | . . 1 . . Weapon 2 | . . . . 2 Highest Loss Streak 3 | . . 1 . 3 To Critical Strikes . | . . . . . Average Backups 1 | . . 1 2 1 Power . | . . . . . Propulsion . | . . . 1 1 Utility . | . . . . . Weapon . | . . . 1 . Tool/Special . | . . . . . Unused Backups 1 | . . . . 1 Power . | . . . . . Propulsion 1 | . . . . 1 Utility . | . . . . . Weapon . | . . . . . Tool/Special . | . . . . . Average Slot Usage (%) 94 | . 97 97 91 83 Engine 12 | . 14 12 11 8 Wheel 30 | . 42 39 5 . Flight 9 | . . . 31 41 Protection 10 | . 11 10 11 8 Energy Gun 18 | . 14 19 22 16 Launcher 11 | . 11 13 10 7 Peak Build Rating 11 | 6 7 9 11 11 Average Rating 7 | 4 6 7 9 10 On Entrance 6 | . 6 7 9 11 Avg Prop Armor Cover (%) 4 | 13 . . . 2 Naked Turns . | . . . . . Heaviest Build 17 | 9 13 17 17 17 Greatest Support 36 | 36 36 36 36 20 Greatest Overweight (x) 5 | . . . 5 1 Average Overweight (x) . | . . . . . Largest Inventory Capacity 2 | . . 2 2 2 Average Capacity 1 | . . 1 2 2 Most Carried 2 | . . 2 2 2 Average Carried 1 | . . 1 2 1 Final Capacity 2 | . . 2 2 2 Final Carried 2 | . . 2 2 1 Class Distribution -------------------- 54% | Mutant 23% | Bomber 20% | Scavenger-Sprinter Dominant Class ---------------- Mutant | -10/Materials Bomber | -9/Materials Scavenger-Sprinter | -9/Mines Scavenger-Sprinter | -8/Materials Resources | -11 -10 -9 -9 -8 ----------- Run | Yrd Mat Mat Min Mat Matter Collected 868 | 289 50 280 30 219 Remotely . | . . . . . Salvage Created 930 | 63 142 522 57 146 Parts 103 | 1 10 63 16 13 Haulers Intercepted . | . . . . . Recyclers Shooed 5 | . . 3 2 . Parts Field Recycled . | . . . . . Retrieved Matter . | . . . . . Parts Self-Destructed . | . . . . . Prevented . | . . . . . Parts Restored . | . . . . . Kills | -11 -10 -9 -9 -8 ------- Run | Yrd Mat Mat Min Mat Combat Hostiles Destroyed 42 | . 7 20 7 8 Guns 12 | . 1 6 1 4 AOE 30 | . 6 14 6 4 Classes Destroyed 9 | 1 2 5 1 . Worker 3 | . . 3 . . Builder 7 | . . 7 . . Recycler 3 | 1 1 1 . . Operator 1 | . . 1 . . Watcher 3 | . 1 2 . . Swarmer 21 | . . 11 4 6 Grunt 16 | . 7 5 2 2 Brawler 1 | . . . 1 . Sentry 4 | . . 4 . . Best Kill Streak 16 | 1 4 16 4 7 Combat Bots Only 12 | . 3 12 4 7 Max Kills in Single Turn 3 | 1 2 3 2 2 Gunslinging . | . . . . . Exploded 3 | . 2 3 2 1 Melee . | . . . . . Uniques/NPCs Destroyed . | . . . . . Combat | -11 -10 -9 -9 -8 -------- Run | Yrd Mat Mat Min Mat Hostile Shots Fired 163 | . 17 90 7 49 Missed 51 | . 6 26 3 16 Hits 112 | . 11 64 4 33 Projectile 112 | . 11 64 4 33 Critical Strikes 1 | . . 1 . . Damage Taken 1592 | . 132 768 88 604 Core 1220 | . 100 548 71 501 Absorbed by Shields . | . . . . . Redirected to Core 810 | . 78 467 51 214 Ignored by Resistances 106 | . . 80 6 20 Core Remaining (%) 79 | 100 92 . 45 . Volleys Fired 79 | 1 13 41 6 18 Largest 3 | 1 2 3 3 3 Hottest 110 | 20 80 110 110 110 Shots Fired 170 | 1 25 90 18 36 Gun 119 | 1 13 66 12 27 Cannon . | . . . . . Launcher 51 | . 12 24 6 9 Special . | . . . . . Kinetic 1 | 1 . . . . Thermal 21 | . 13 8 . . Explosive 51 | . 12 24 6 9 Electromagnetic 97 | . . 58 12 27 Robot Hit Streak 10 | 1 4 10 2 6 Robot Miss Streak 7 | . 3 2 5 7 Penetration Max . | . . . . . Secondary Targets 4 | . . 2 . 2 Max Gunslinging Chain 1 | . . 1 . 1 Shots Hit Robots 85 | 1 14 48 6 16 Core Hits 108 | 2 16 64 12 14 Critical Kills . | . . . . . Critical Parts Destroyed . | . . . . . Critical Strikes 2 | . 1 . . 1 Burn 1 | . 1 . . . Corrupt 1 | . . . . 1 Melee Attacks . | . . . . . Impact . | . . . . . Slashing . | . . . . . Piercing . | . . . . . Sneak Attacks . | . . . . . Combat Hostiles . | . . . . . Follow-up Attacks . | . . . . . Damage Inflicted 3857 | 16 788 2013 449 591 Guns 774 | 14 88 430 67 175 Cannons . | . . . . . Explosions 3050 | . 687 1565 382 416 Melee . | . . . . . Ramming 33 | 2 13 18 . . Kinetic 14 | 14 . . . . Thermal 356 | . 88 179 89 . Explosive 2795 | . 687 1399 293 416 Electromagnetic 659 | . . 417 67 175 Impact . | . . . . . Slashing . | . . . . . Piercing . | . . . . . Highest Corruption 3 | . . 2 3 . Average Corruption 2 | . . 1 2 . Corruption Purged . | . . . . . Corruption Blocked . | . . . . . Effects 1 | . . . 1 . Message Errors 1 | . . . 1 . Overload Shots . | . . . . . Overflow Damage 69 | . 15 43 . 11 Projectiles . | . . . . . Explosions 69 | . 15 43 . 11 Melee . | . . . . . Knockbacks . | . . . . . Impact . | . . . . . Kinetic . | . . . . . Secondary . | . . . . . Self-Inflicted Damage 183 | . 6 104 62 11 Shots 12 | . . 7 3 2 Rammed 5 | 1 1 3 . . Targets Rammed 5 | 1 1 3 . . Kicked . | . . . . . Crushed . | . . . . . Highest Temperature 563 | . 161 390 448 563 Average Temperature 179 | . 74 103 226 321 Received Heat Transfer 543 | . 72 258 6 207 Effects 34 | . . 5 4 25 Shutdowns 6 | . . . 1 5 Energy Bleed 6 | . . 1 1 4 Interference 9 | . . 3 . 6 Matter Decay 2 | . . . . 2 Short Circuit 2 | . . 1 . 1 Damage (minor) 3 | . . . 1 2 Damage (major) 4 | . . . 1 3 Damage (core) 2 | . . . . 2 Siege Activations . | . . . . . Martial Activations . | . . . . . Shielding Activations . | . . . . . Robots Disrupted . | . . . . . Combat Hostiles . | . . . . . Robots Corrupted . | . . . . . Combat Hostiles . | . . . . . Parts Fried . | . . . . . Impact Corruptions . | . . . . . Robots Melted . | . . . . . Combat Hostiles . | . . . . . Parts Melted . | . . . . . Heat Transferred 781 | . 333 248 200 . Parts Sabotaged . | . . . . . Parts Stolen . | . . . . . Parts Stripped . | . . . . . Power Chain Reactions 3 | . . 3 . . Alert | -11 -10 -9 -9 -8 ------- Run | Yrd Mat Mat Min Mat Maximum Alert Level 2 | . . 2 2 1 Low Security (%) 57 | 100 100 47 . 38 Level 1 25 | . . 19 77 61 Level 2 16 | . . 32 22 . Level 3 . | . . . . . Level 4 . | . . . . . Level 5 . | . . . . . High Security . | . . . . . Max Security . | . . . . . Peak Influence 640 | 5 176 640 418 312 Initial 235 | . . 74 235 154 Average 219 | . 43 312 365 245 Influence Increases 1466 | 5 266 746 233 216 Destroy 0b10 Robot/C 840 | . 140 400 140 160 Destroy 0b10 Robot/NC 85 | 5 10 70 . . Destroy Leader 156 | . 32 94 20 10 Disable Machine 90 | . 15 45 30 . Destroy Structure 265 | . 69 107 43 46 Lose Combat Pursuer 30 | . . 30 . . Influence Decreases 1176 | 5 90 318 439 324 Entered New Map 715 | . . 102 369 244 Time Decay 421 | 5 90 206 70 50 Lost Part 40 | . . 10 . 30 Squads Dispatched 8 | . 2 5 . 1 Investigation 5 | . 1 3 . 1 Extermination . | . . . . . Reinforcement 3 | . 1 2 . . Assault . | . . . . . Garrison . | . . . . . Intercept . | . . . . . Searches Triggered . | . . . . . Construction Impeded 2 | . . 2 . . Haulers Reinforced . | . . . . . Active Scanning Responses . | . . . . . Cargo Convoy Interrupts . | . . . . . Stealth | -11 -10 -9 -9 -8 --------- Run | Yrd Mat Mat Min Mat Distress Signals 4 | . 2 1 . 1 Communications Jammed . | . . . . . Distress Signals . | . . . . . Times Spotted 55 | . 9 30 5 11 Peak Tracking Total 5 | . 4 5 3 5 Tactical Retreats 2 | . . 2 . . Traps | -11 -10 -9 -9 -8 ------- Run | Yrd Mat Mat Min Mat Traps Triggered 1 | . . . . 1 Indirectly . | . . . . . Trap Hack Attempts . | . . . . . Triggered . | . . . . . Disarmed . | . . . . . Reprogrammed 6 | . . 6 . . Reused . | . . . . . Traps Extracted . | . . . . . Installed . | . . . . . Triggered . | . . . . . Machines | -11 -10 -9 -9 -8 ---------- Run | Yrd Mat Mat Min Mat Machines Disabled 6 | . 1 3 2 . Max in Single Turn 2 | . 1 1 2 . Machines Repaired . | . . . . . Machines Dismantled . | . . . . . Machines Sabotaged . | . . . . . Overloaded Fab Kills . | . . . . . Hacking | -11 -10 -9 -9 -8 --------- Run | Yrd Mat Mat Min Mat Machines Accessed 6 | . 3 3 . . Terminals 5 | . 2 3 . . Fabricators . | . . . . . Repair Stations . | . . . . . Recycling Units 1 | . 1 . . . Scanalyzers . | . . . . . Garrison Access . | . . . . . Total Hacks 15 | . 6 9 . . Successful 2 | . 1 1 . . Failed 13 | . 5 8 . . Catastrophic 3 | . 2 1 . . Database Lockouts . | . . . . . Manual 12 | . 5 7 . . Terminals 14 | . 5 9 . . Fabricators . | . . . . . Repair Stations . | . . . . . Recycling Units 1 | . 1 . . . Scanalyzers . | . . . . . Garrison Access . | . . . . . Terminal Hacks 1 | . . 1 . . Reprogram Traps 1 | . . 1 . . Fabricator Hacks . | . . . . . Repair Station Hacks . | . . . . . Recycling Unit Hacks 1 | . 1 . . . Retrieve Components 1 | . 1 . . . Scanalyzer . | . . . . . Garrison Access Hacks . | . . . . . Unauthorized Hacks . | . . . . . Terminals . | . . . . . Fabricators . | . . . . . Repair Stations . | . . . . . Recycling Units . | . . . . . Scanalyzers . | . . . . . Garrison Access . | . . . . . Data Cores Recovered 1 | . . 1 . . Used 1 | . . 1 . . Hacking Detections 4 | . 2 2 . . Full Trace Events 4 | . 2 2 . . Feedback Events . | . . . . . Feedback Blocked . | . . . . . Robot Schematics Acquired . | . . . . . Robots Built . | . . . . . Authchips . | . . . . . Time . | . . . . . Total Robot Build Rating . | . . . . . Part Schematics Acquired . | . . . . . Parts Built . | . . . . . Authchips . | . . . . . Time . | . . . . . Total Part Build Rating . | . . . . . Part Studies Acquired . | . . . . . Parts Repaired . | . . . . . Time . | . . . . . Parts Recycled . | . . . . . Recycled Matter . | . . . . . Retrieved Matter . | . . . . . Retrieved Components 3 | . 3 . . . Parts Scanalyzed . | . . . . . Part Schematics Acquired . | . . . . . Parts Damaged . | . . . . . Bothacking | -11 -10 -9 -9 -8 ------------ Run | Yrd Mat Mat Min Mat Used RIF Installer . | . . . . . Robots Hacked . | . . . . . Non-combat . | . . . . . Combat . | . . . . . Robot Hacks Applied . | . . . . . Relay Couplers Released . | . . . . . Fabnet Peak Effective % . | . . . . . Robots Rewired . | . . . . . Allies Hacked . | . . . . . Hacks Repelled . | . . . . . Allies | -11 -10 -9 -9 -8 -------- Run | Yrd Mat Mat Min Mat Total Allies . | . . . . . Largest Group . | . . . . . Highest-Rated Group . | . . . . . Highest-Rated Ally . | . . . . . Total Orders . | . . . . . Ally Attacks . | . . . . . Total Damage . | . . . . . Kills . | . . . . . Allies Corrupted . | . . . . . Allies Melted . | . . . . . Intel | -11 -10 -9 -9 -8 ------- Run | Yrd Mat Mat Min Mat Active Infowar (turns) . | . . . . . Robot Analysis Total . | . . . . . Derelict Logs Recovered . | . . . . . Drone Launches . | . . . . . Drone Recoveries . | . . . . . Exploration | -11 -10 -9 -9 -8 ------------- Run | Yrd Mat Mat Min Mat Turns Passed 1037 | 96 246 436 140 119 Spaces Moved 981 | 95 233 335 184 134 Core 22 | 21 . . 1 . Treads 7 | 7 . . . . Legs . | . . . . . Wheels 648 | 67 233 335 13 . Hover . | . . . . . Flight 304 | . . . 170 134 Fastest Speed 28 | 50 86 86 28 28 Average Speed 73 | 82 86 86 53 44 Slowest Speed 360 | 160 86 86 360 111 Overloaded Moves . | . . . . . Propulsion Burnouts . | . . . . . Robots Hopped 2 | . . . 2 . Potential Cave-ins . | . . . . . Cave-ins Triggered . | . . . . . Exploration Rate (%) 29 | 5 42 33 59 8 Regions Visited 4 Branch Regions 1 Pre-discovered Areas . | . . . . . Known Exits Taken . | . . . . . Unknown Exits Taken 4 | 1 1 1 1 . Scrap Searched . | . . . . . Spaces Dug . | . . . . . Terrain Destroyed 310 | . 99 115 46 50 Melee . | . . . . . Projectile . | . . . . . AOE 310 | . 99 115 46 50 Terrain Rammed . | . . . . . Walls Destroyed . | . . . . . Machines Disabled . | . . . . . Actions | -11 -10 -9 -9 -8 --------- Run | Yrd Mat Mat Min Mat Total 1130 | 108 252 400 207 163 Wait 7 | . . . . 7 Move 973 | 94 232 334 179 134 Hop 2 | . . . 2 . Pick Up 2 | . . 2 . . Fast Attach 26 | 9 2 6 8 1 Attach . | . . . . . Detach 1 | . . 1 . . Swap . | . . . . . Drop 13 | 3 1 4 4 1 Fire 79 | 1 13 41 6 18 Melee . | . . . . . Ram 4 | . 1 3 . . Kick . | . . . . . Crush 1 | 1 . . . . Escape Stasis . | . . . . . Rewire . | . . . . . Trap . | . . . . . Miscellaneous 22 | . 3 9 8 2 Route ------- -11/Scrapyard -10/Materials (discovered 2 exits: *Mat / [*Min]) -9/Materials -9/Mines -8/Materials History --------- Turn | Location | Event 6 | -11/Scrapyard | Discovered new exit (range 16) 10 | -11/Scrapyard | Upgraded with Propulsion slot (x2) 10 | -11/Scrapyard | Upgraded with Weapon slot (x1) 97 | -11/Scrapyard | Entered Materials 98 | -10/Materials | Met a group of wandering Federalists 185 | -10/Materials | Discovered new exit (range 10) 301 | -10/Materials | Discovered new exit (range 9) 304 | -10/Materials | Build established: Mutant 343 | -10/Materials | Entered another Materials area 345 | -9/Materials | Reached level 2 552 | -9/Materials | Reached level 3 556 | -9/Materials | Upgraded with Weapon slot (x1) 647 | -9/Materials | Core integrity fell below 50% 671 | -9/Materials | Reached level 4 686 | -9/Materials | Core integrity fell below 20% 720 | -9/Materials | Destroyed 12 combat bots 760 | -9/Materials | Discovered new exit (range 16) 779 | -9/Materials | Entered Mines 781 | -9/Mines | Reached level 5 838 | -9/Mines | Upgraded with Propulsion slot (x1) 853 | -9/Mines | Upgraded with Propulsion slot (x1) 898 | -9/Mines | Discovered new exit (range 15) 919 | -9/Mines | Entered Materials 920 | -8/Materials | Core integrity fell below 50% 921 | -8/Materials | Reached level 6 921 | -8/Materials | Upgraded with Utility slot (x2) 999 | -8/Materials | Destroyed 7 combat bots 1021 | -8/Materials | Core integrity fell below 20% 1038 | -8/Materials | Destroyed by G-47 Trooper with Particle Gun Last Messages --------------- 00994_ Power failure, Imp. Ion Engine shutdown. 00995_ K-01 Serf collects debris. 00997_ R-06 Scavenger collects Flight Unit. 00999_ The unstable cave ceiling collapses. 01004_ Power failure, Imp. Ion Engine shutdown. 01020_ EM Pulse Gun destroyed. 01022_ Grenade Launcher destroyed. 01023_ Upgraded: Core Integrity (+200) 01023_ Dropped EM Pulse Gun. 01024_ Acquired EM Pulse Gun. 01032_ Flight Unit destroyed. 01034_ Power failure, Imp. Ion Engine shutdown. 01035_ Overheating: EM Pulse Gun damaged (-27). 01035_ Overheating: Broken Flight Unit damaged (-7). 01035_ G-47 Trooper IFF system glitched. 01035_ G-47 Trooper destroyed. 01035_ Switching to secondary target: G-47 Trooper. 01038_ Overheating: Core damaged (-120). Map ----- +----------------------------------------------------+ | | | | | | | | | | | | | | | | | | | | | | | | | | | | | | | | | | | | | | | ?????????????????????????????????????????????????? | | ?????????????????????????????????????????????????? | | ???????????????????????????########### ##????????? | | ?????????????############### ## ########?? | | ?????????????# * #?? | | ?????????????# [ %= #?? | | ?????????????# @ [ g +?? | | ?????????????####+########g## # | | ??????????????# # * ## | | ??????????????# # #?#### ## ## | | ??????????????# """# """ #?# [ # | | ??????????????# """# """"" + # # | | ??????????????# ! """# """"" ### | | ??????????????# # """"" #?# ## | | ??????????????######## """ #?####+##### %=%##? | | ?????????????????????# #????# #?? #? | | ?????????????????????#####??####????# #?? # # | | ????????????????????????????????????# #? #! !# | | ????????????????????????????????????# +? # "" # | | ????????????????????????????????????# # # S"" # | | ????????????????????????????????????# # # "" # | | ????????????????????????????????????# # # # | | ????????????????????????????????????# ##+??##??### | | ????????????????????????????????????? ???????????? | | ?????????????????????????????????????#???????????? | | ?????????????????????????????????????????????????? | | ?????????????????????????????????????????????????? | | ?????????????????????????????????????????????????? | | ?????????????????????????????????????????????????? | | ?????????????????????????????????????????????????? | | ?????????????????????????????????????????????????? | +----------------------------------------------------+ Best States ------------- Heat Dissipation 25 Energy Generation 12 Energy Capacity 265 Matter Stores 300 Matter Capacity 300 Sight Range 17 Terrain Scan Density 10 Armor Coverage 150 Resistance: KI 20 Evasion (%) 64 Recoil Reduction 1 Item Schematics ----------------- None Robot Schematics ------------------ None Fabricated ------------ Nothing Repaired ---------- Nothing Studied --------- None Alien Tech Used ----------------- None Achievements -------------- Dynamic Key Challenges ------------ None RPGLIKE | -11 -10 -9 -9 -8 --------- Run | Yrd Mat Mat Min Mat Levels Raised 5 | . . 3 1 1 XP Earned 11923 | 3000 925 4194 1454 2350 XP Spent 10110 | 2850 . 2300 2500 2460 Upgrades 21 | 6 . 4 2 9 Propulsion Slot 4 | 2 . . 2 . Utility Slot 2 | . . . . 2 Weapon Slot 2 | 1 . 1 . . Core Integrity 4 | . . . . 4 Inventory Capacity 2 | . . 2 . . Sight Range 1 | . . . . 1 Ranged Accuracy 2 | . . . . 2 KI Resistance % 4 | 3 . 1 . . Protomatter Created 265 | . 73 136 55 1 Integrity Restored 412 | . 52 174 165 21 Core 412 | . 52 174 165 21 Protomatter Decayed 156 | . 69 47 . 40 Game ------ Seed ThrusterCentriumMegatreads Manual? 0 Play Time 00:19:03 Cumulative 12.4 hours Start 2025.11.19 @ 15:19:01 End 2025.11.19 @ 23:27:36 Sessions 3 Manual Loads 0 Difficulty Rogue Special Mode Winter2019/RPGLIKE Game No. 29 Rogue 25 Adventurer 4 Explorer 0 Win Type - Total 0 Types 0/0/0/0/0/0/0/0/0/0 Lore% 4 Gallery% 16 Achievement% 13 Wizard Run 0 Options --------- Layout 2 ASCII 0 Keyboard 0 Movement Arrows Keybinds 1 Fullscreen 2 Font 32/SmallcapsGlow Map View 50x44 Zoom Use 0% Tactical HUD 1 Map Filters NONE Filters NONE Steam 1 RUN: 3dd4fb0b-fd59-4dc9-ac37-67bc25e45e55